[Event "*** MasterClass Titled Tuesday Blitz"]
[Site "Chess.com"]
[Date "2017.09.05"]
[Round "1"]
[White "djogrodek1"]
[Black "Alohamora11"]
[Result "0-1"]
[WhiteElo "2439"]
[BlackElo "2111"]
[TimeControl "180+2"]
[EndTime "13:08:53 PDT"]
[Termination "Alohamora11 won by resignation"]

1. e4 {[%clk 0:02:56.9]} 1... c5 {[%clk 0:03:00.1]} 2. Nf3 {[%clk 0:02:56.1]}
2... g6 {[%clk 0:03:00.9]} 3. d4 {[%clk 0:02:55.9]} 3... cxd4 {[%clk 0:03:02.8]}
4. Qxd4 {[%clk 0:02:58.1]} 4... Nf6 {[%clk 0:03:03.5]} 5. Nc3 {[%clk 0:03:00]}
5... Nc6 {[%clk 0:03:04.3]} 6. Qa4 {[%clk 0:03:02.1]} 6... d6 {[%clk 0:03:01.2]}
7. e5 {[%clk 0:03:03.2]} 7... dxe5 {[%clk 0:02:51.8]} 8. Nxe5 {[%clk 0:03:05.9]}
8... Qd4 {[%clk 0:02:50.9]} 9. Nxc6 {[%clk 0:02:53.2]} 9... Qxa4 {[%clk
0:02:51.4]} 10. Nxa4 {[%clk 0:02:55.8]} 10... bxc6 {[%clk 0:02:52.8]} 11. b3
{[%clk 0:02:56]} 11... Bf5 {[%clk 0:02:27]} 12. c4 {[%clk 0:02:54.5]} 12... Rd8
{[%clk 0:02:00]} 13. Bb2 {[%clk 0:02:54.6]} 13... Bh6 {[%clk 0:02:00.8]} 14. f3
{[%clk 0:02:32.4]} 14... Bd2+ {[%clk 0:01:51.8]} 15. Kf2 {[%clk 0:02:32.8]}
15... h5 {[%clk 0:01:52.9]} 16. Be2 {[%clk 0:02:31.1]} 16... O-O {[%clk
0:01:45]} 17. Nc3 {[%clk 0:01:54.3]} 17... Rfe8 {[%clk 0:01:27]} 18. h3 {[%clk
0:01:33.9]} 18... h4 {[%clk 0:01:26.7]} 19. Nd1 {[%clk 0:01:30.4]} 19... Nh5
{[%clk 0:01:17.7]} 20. Ne3 {[%clk 0:01:28.5]} 20... Nf4 {[%clk 0:00:54.8]} 21.
Nxf5 {[%clk 0:01:21.2]} 21... gxf5 {[%clk 0:00:53.9]} 22. Rhd1 {[%clk
0:01:21.5]} 22... e5 {[%clk 0:00:49.3]} 23. Bc1 {[%clk 0:01:15.7]} 23... Bxc1
{[%clk 0:00:42.9]} 24. Raxc1 {[%clk 0:01:16.3]} 24... e4 {[%clk 0:00:44.1]} 25.
fxe4 {[%clk 0:01:07.4]} 25... fxe4 {[%clk 0:00:46]} 26. Rxd8 {[%clk 0:00:58.4]}
26... Rxd8 {[%clk 0:00:47.9]} 27. Rd1 {[%clk 0:00:59.9]} 27... Rxd1 {[%clk
0:00:42.2]} 28. Bxd1 {[%clk 0:01:01.8]} 28... f5 {[%clk 0:00:41.6]} 29. a3
{[%clk 0:00:39.4]} 29... Kf7 {[%clk 0:00:38.7]} 30. b4 {[%clk 0:00:40.4]} 30...
Ke6 {[%clk 0:00:39.3]} 31. c5 {[%clk 0:00:29.4]} 31... Ke5 {[%clk 0:00:39.3]}
32. Ba4 {[%clk 0:00:30.7]} 32... Nd3+ {[%clk 0:00:37.9]} 33. Ke2 {[%clk
0:00:29.4]} 33... Nf4+ {[%clk 0:00:38.4]} 34. Kf1 {[%clk 0:00:29.7]} 34... Kd5
{[%clk 0:00:34.3]} 35. Kf2 {[%clk 0:00:31.1]} 35... Nd3+ {[%clk 0:00:33.1]} 36.
Ke2 {[%clk 0:00:29.4]} 36... Ne5 {[%clk 0:00:32.2]} 37. Bb3+ {[%clk 0:00:29]}
37... Kd4 {[%clk 0:00:32.9]} 38. Be6 {[%clk 0:00:29]} 38... f4 {[%clk
0:00:33.7]} 39. Bg4 {[%clk 0:00:30.4]} 39... Nc4 {[%clk 0:00:29.9]} 40. Bf5
{[%clk 0:00:30.9]} 40... Nxa3 {[%clk 0:00:30.4]} 41. Bd7 {[%clk 0:00:31.5]}
41... Nc2 {[%clk 0:00:30.2]} 42. b5 {[%clk 0:00:32.9]} 42... Kxc5 {[%clk
0:00:29.7]} 43. bxc6 {[%clk 0:00:33]} 43... Nd4+ {[%clk 0:00:30.8]} 44. Kf2
{[%clk 0:00:33.6]} 44... Nxc6 {[%clk 0:00:32.3]} 45. Bf5 {[%clk 0:00:35.5]}
45... Kd4 {[%clk 0:00:33.2]} 46. Bd7 {[%clk 0:00:36.6]} 46... Ne5 {[%clk
0:00:34.5]} 47. Bc8 {[%clk 0:00:37.8]} 47... a5 {[%clk 0:00:35.4]} 48. Be6
{[%clk 0:00:38.2]} 48... a4 {[%clk 0:00:36.5]} 49. Ba2 {[%clk 0:00:39.5]} 49...
a3 {[%clk 0:00:37.8]} 50. Ke2 {[%clk 0:00:40.9]} 50... Nd3 {[%clk 0:00:38.7]}
0-1

[Event "*** MasterClass Titled Tuesday Blitz"]
[Site "Chess.com"]
[Date "2017.09.05"]
[Round "1"]
[White "AdrianaNikolova"]
[Black "yurisolo"]
[Result "0-1"]
[WhiteElo "2268"]
[BlackElo "2538"]
[TimeControl "180+2"]
[EndTime "13:09:45 PDT"]
[Termination "yurisolo won by resignation"]

1. e4 {[%clk 0:02:58.3]} 1... c5 {[%clk 0:02:59.6]} 2. c3 {[%clk 0:02:59.5]}
2... Nf6 {[%clk 0:02:59.9]} 3. e5 {[%clk 0:03:00.7]} 3... Nd5 {[%clk 0:03:00.4]}
4. d4 {[%clk 0:03:02.6]} 4... cxd4 {[%clk 0:02:54.3]} 5. Nf3 {[%clk 0:03:04.5]}
5... d6 {[%clk 0:02:52.7]} 6. cxd4 {[%clk 0:03:05.3]} 6... dxe5 {[%clk
0:02:40.6]} 7. dxe5 {[%clk 0:03:01.5]} 7... Bg4 {[%clk 0:02:41.1]} 8. Be2 {[%clk
0:02:31.7]} 8... Nc6 {[%clk 0:02:41]} 9. O-O {[%clk 0:02:23.9]} 9... e6 {[%clk
0:02:41.4]} 10. Bg5 {[%clk 0:02:18.9]} 10... Be7 {[%clk 0:02:35]} 11. Bxe7
{[%clk 0:02:17.7]} 11... Qxe7 {[%clk 0:02:30.8]} 12. h3 {[%clk 0:02:19]} 12...
Bxf3 {[%clk 0:02:26.2]} 13. Bxf3 {[%clk 0:02:21.3]} 13... Rd8 {[%clk 0:02:27.1]}
14. Re1 {[%clk 0:02:08.3]} 14... O-O {[%clk 0:02:12.6]} 15. Qa4 {[%clk
0:01:52.1]} 15... Ndb4 {[%clk 0:01:59.7]} 16. Bxc6 {[%clk 0:01:00.2]} 16... Nxc6
{[%clk 0:02:01.6]} 17. Nc3 {[%clk 0:01:00.2]} 17... Rd4 {[%clk 0:01:41.6]} 18.
Qc2 {[%clk 0:00:52]} 18... Rfd8 {[%clk 0:01:38.6]} 19. Re2 {[%clk 0:00:36.1]}
19... Qc5 {[%clk 0:01:12.9]} 20. Rae1 {[%clk 0:00:36.4]} 20... Nb4 {[%clk
0:01:09.2]} 21. Qb3 {[%clk 0:00:32.2]} 21... Nd3 {[%clk 0:01:09.2]} 22. Rf1
{[%clk 0:00:23.4]} 22... b6 {[%clk 0:00:50.7]} 23. Ne4 {[%clk 0:00:23.5]} 23...
Qxe5 {[%clk 0:00:45.3]} 24. Ng3 {[%clk 0:00:11.9]} 24... Qf6 {[%clk 0:00:31.3]}
25. Qa3 {[%clk 0:00:08]} 25... Nf4 {[%clk 0:00:23.2]} 26. Re3 {[%clk 0:00:08.6]}
26... R4d7 {[%clk 0:00:19.9]} 27. Rf3 {[%clk 0:00:09.7]} 27... e5 {[%clk
0:00:18.5]} 28. Ne4 {[%clk 0:00:10.3]} 28... Qg6 {[%clk 0:00:19.1]} 29. Ng3
{[%clk 0:00:09.8]} 29... h6 {[%clk 0:00:16.9]} 30. Kh2 {[%clk 0:00:10]} 30... a5
{[%clk 0:00:17.5]} 31. Qb3 {[%clk 0:00:10.3]} 31... Rd6 {[%clk 0:00:17.3]} 32.
Qc3 {[%clk 0:00:10.2]} 32... f6 {[%clk 0:00:17]} 33. Qc7 {[%clk 0:00:10.7]}
33... Kh7 {[%clk 0:00:17.3]} 34. Qc4 {[%clk 0:00:11.3]} 34... Rd4 {[%clk
0:00:15.8]} 35. Qb5 {[%clk 0:00:12.3]} 35... R8d6 {[%clk 0:00:16.2]} 36. Qa6
{[%clk 0:00:12.3]} 36... h5 {[%clk 0:00:17.3]} 37. h4 {[%clk 0:00:07.8]} 37...
Ne6 {[%clk 0:00:13.8]} 38. Qc8 {[%clk 0:00:07.8]} 38... Rxh4+ {[%clk 0:00:14.1]}
39. Kg1 {[%clk 0:00:09.4]} 39... Rhd4 {[%clk 0:00:11]} 40. Nf5 {[%clk
0:00:10.3]} 40... Rg4 {[%clk 0:00:07.1]} 41. g3 {[%clk 0:00:08.3]} 41... Nd4
{[%clk 0:00:06.6]} 42. Nxd4 {[%clk 0:00:04.2]} 42... Rgxd4 {[%clk 0:00:07.5]}
43. Kg2 {[%clk 0:00:05.5]} 43... Rg4 {[%clk 0:00:08.2]} 44. Rh1 {[%clk
0:00:06.4]} 44... Rg5 {[%clk 0:00:09.4]} 45. Qc7 {[%clk 0:00:06.4]} 45... Rd4
{[%clk 0:00:09.8]} 46. Qxb6 {[%clk 0:00:06.2]} 46... Rdg4 {[%clk 0:00:10.1]} 47.
Qxa5 {[%clk 0:00:06.5]} 47... e4 {[%clk 0:00:11.4]} 48. Re3 {[%clk 0:00:07.3]}
48... Rxa5 {[%clk 0:00:11.9]} 49. Rh3 {[%clk 0:00:06.6]} 49... Rag5 {[%clk
0:00:12.5]} 0-1

[Event "*** MasterClass Titled Tuesday Blitz"]
[Site "Chess.com"]
[Date "2017.09.05"]
[Round "1"]
[White "manubibi"]
[Black "Sebastian"]
[Result "1-0"]
[WhiteElo "2432"]
[BlackElo "2816"]
[TimeControl "180+2"]
[EndTime "13:09:52 PDT"]
[Termination "manubibi won by resignation"]

1. e4 {[%clk 0:03:01.9]} 1... c5 {[%clk 0:03:01]} 2. Nf3 {[%clk 0:03:02.5]} 2...
d6 {[%clk 0:03:02.7]} 3. d4 {[%clk 0:03:03.4]} 3... cxd4 {[%clk 0:03:04.4]} 4.
Nxd4 {[%clk 0:03:05.3]} 4... Nf6 {[%clk 0:03:05.7]} 5. Nc3 {[%clk 0:03:06.9]}
5... a6 {[%clk 0:03:07.3]} 6. Bg5 {[%clk 0:03:08.2]} 6... Nbd7 {[%clk
0:03:08.2]} 7. Qe2 {[%clk 0:03:09.1]} 7... h6 {[%clk 0:03:07.7]} 8. Bh4 {[%clk
0:03:09.3]} 8... g6 {[%clk 0:03:08.7]} 9. f4 {[%clk 0:03:07.5]} 9... e5 {[%clk
0:03:10.4]} 10. fxe5 {[%clk 0:03:05]} 10... dxe5 {[%clk 0:03:12.3]} 11. Nb3
{[%clk 0:03:05]} 11... Qc7 {[%clk 0:03:13.9]} 12. O-O-O {[%clk 0:03:05.3]} 12...
b5 {[%clk 0:03:10.2]} 13. g4 {[%clk 0:03:03.6]} 13... Bb7 {[%clk 0:03:01.6]} 14.
Bg2 {[%clk 0:03:03.5]} 14... Bg7 {[%clk 0:02:41.4]} 15. Nd5 {[%clk 0:02:27.3]}
15... Bxd5 {[%clk 0:02:39.6]} 16. exd5 {[%clk 0:02:29.2]} 16... Qd6 {[%clk
0:02:40.9]} 17. Nd4 {[%clk 0:02:26]} 17... O-O {[%clk 0:02:39.6]} 18. Nc6 {[%clk
0:02:27]} 18... b4 {[%clk 0:02:13.1]} 19. Rhe1 {[%clk 0:02:22.9]} 19... Rfe8
{[%clk 0:02:13.1]} 20. Bg3 {[%clk 0:02:21.9]} 20... Rac8 {[%clk 0:01:53.6]} 21.
Kb1 {[%clk 0:02:14.2]} 21... a5 {[%clk 0:01:11.3]} 22. Nxa5 {[%clk 0:01:33.7]}
22... Qb6 {[%clk 0:00:56.8]} 23. Nc4 {[%clk 0:01:23.4]} 23... Qa7 {[%clk
0:00:47.8]} 24. d6 {[%clk 0:00:41.1]} 24... e4 {[%clk 0:00:46.9]} 25. Bf2 {[%clk
0:00:36.9]} 25... Qa6 {[%clk 0:00:37.4]} 26. Nb6 {[%clk 0:00:36.5]} 26... Qa5
{[%clk 0:00:38.7]} 27. Nxc8 {[%clk 0:00:36]} 27... Rxc8 {[%clk 0:00:40.4]} 28.
Bxe4 {[%clk 0:00:31.8]} 28... Ne5 {[%clk 0:00:18.4]} 29. Bd4 {[%clk 0:00:29.8]}
29... Ned7 {[%clk 0:00:16.1]} 30. Qd3 {[%clk 0:00:27.2]} 30... Nxg4 {[%clk
0:00:13.6]} 31. Bxg6 {[%clk 0:00:27]} 31... Nge5 {[%clk 0:00:08.9]} 32. Bxe5
{[%clk 0:00:21.1]} 32... Nxe5 {[%clk 0:00:10.8]} 33. Bxf7+ {[%clk 0:00:19.5]}
33... Nxf7 {[%clk 0:00:09.9]} 34. d7 {[%clk 0:00:20.8]} 34... Rf8 {[%clk
0:00:08.3]} 35. Re8 {[%clk 0:00:21.6]} 35... Nd8 {[%clk 0:00:06.9]} 36. Qd5+
{[%clk 0:00:20.6]} 36... Qxd5 {[%clk 0:00:07.8]} 37. Rxd5 {[%clk 0:00:22.3]}
37... Bf6 {[%clk 0:00:07.7]} 38. a4 {[%clk 0:00:21.5]} 38... bxa3 {[%clk
0:00:07.9]} 39. bxa3 {[%clk 0:00:22]} 39... Kf7 {[%clk 0:00:09.6]} 40. Rxf8+
{[%clk 0:00:22.2]} 40... Kxf8 {[%clk 0:00:10.8]} 41. a4 {[%clk 0:00:23.9]} 41...
Ke7 {[%clk 0:00:11.4]} 42. a5 {[%clk 0:00:25.4]} 42... Nc6 {[%clk 0:00:10.4]}
43. a6 {[%clk 0:00:25.2]} 43... Bg5 {[%clk 0:00:09.8]} 44. c3 {[%clk 0:00:25.6]}
44... Kd8 {[%clk 0:00:10.6]} 45. Kc2 {[%clk 0:00:26.1]} 45... Kc7 {[%clk
0:00:11.7]} 46. Kb3 {[%clk 0:00:26.7]} 46... Bd8 {[%clk 0:00:12.7]} 47. Kc4
{[%clk 0:00:27]} 47... Kb6 {[%clk 0:00:14.1]} 48. Rd6 {[%clk 0:00:27.2]} 48...
Kc7 {[%clk 0:00:10.8]} 49. Kd5 {[%clk 0:00:24.6]} 49... Ne7+ {[%clk 0:00:10.6]}
50. Ke6 {[%clk 0:00:25.9]} 50... Nc6 {[%clk 0:00:12]} 51. Rd5 {[%clk 0:00:25.1]}
51... Kb6 {[%clk 0:00:10.9]} 52. Rd6 {[%clk 0:00:25.7]} 52... Kc5 {[%clk
0:00:10.9]} 53. Rxc6+ {[%clk 0:00:25.1]} 53... Kxc6 {[%clk 0:00:11.6]} 54. a7
{[%clk 0:00:25.6]} 54... Kb7 {[%clk 0:00:12.8]} 55. Kf7 {[%clk 0:00:27.1]} 55...
Kxa7 {[%clk 0:00:10]} 56. Ke8 {[%clk 0:00:28.6]} 56... Bh4 {[%clk 0:00:11.3]}
57. d8=Q {[%clk 0:00:30.1]} 57... Bxd8 {[%clk 0:00:13]} 58. Kxd8 {[%clk
0:00:31.9]} 58... Kb6 {[%clk 0:00:14.6]} 59. Ke7 {[%clk 0:00:33.5]} 59... Kc5
{[%clk 0:00:15.1]} 60. Kf6 {[%clk 0:00:35.4]} 60... Kc4 {[%clk 0:00:14.2]} 61.
Kg6 {[%clk 0:00:36.6]} 61... Kxc3 {[%clk 0:00:16.1]} 62. h4 {[%clk 0:00:37.3]}
62... Kd4 {[%clk 0:00:16.9]} 63. Kxh6 {[%clk 0:00:38.6]} 63... Ke5 {[%clk
0:00:18.3]} 64. Kg7 {[%clk 0:00:37.8]} 64... Kf5 {[%clk 0:00:19.5]} 65. h5
{[%clk 0:00:39.7]} 65... Kg5 {[%clk 0:00:20.8]} 66. h6 {[%clk 0:00:41.6]} 1-0

[Event "*** MasterClass Titled Tuesday Blitz"]
[Site "Chess.com"]
[Date "2017.09.05"]
[Round "1"]
[White "TenisMaster"]
[Black "JSPrepz"]
[Result "1/2-1/2"]
[WhiteElo "2767"]
[BlackElo "2425"]
[TimeControl "180+2"]
[EndTime "13:10:01 PDT"]
[Termination "Game drawn by agreement"]

1. e4 {[%clk 0:03:01.9]} 1... e6 {[%clk 0:03:00.9]} 2. d4 {[%clk 0:03:01.9]}
2... d5 {[%clk 0:03:01.7]} 3. Nc3 {[%clk 0:03:02.9]} 3... Nf6 {[%clk 0:03:02.6]}
4. e5 {[%clk 0:03:03.8]} 4... Nfd7 {[%clk 0:03:04]} 5. f4 {[%clk 0:03:04.9]}
5... c5 {[%clk 0:03:05.6]} 6. Nf3 {[%clk 0:03:06]} 6... Nc6 {[%clk 0:03:06.5]}
7. Be3 {[%clk 0:03:07.5]} 7... Be7 {[%clk 0:03:08]} 8. Qd2 {[%clk 0:03:06.5]}
8... O-O {[%clk 0:03:08.8]} 9. Be2 {[%clk 0:03:03]} 9... b6 {[%clk 0:03:07.3]}
10. Nd1 {[%clk 0:03:03]} 10... cxd4 {[%clk 0:03:03.3]} 11. Nxd4 {[%clk
0:03:03.2]} 11... Nxd4 {[%clk 0:03:04.8]} 12. Bxd4 {[%clk 0:03:04]} 12... Nb8
{[%clk 0:03:06.7]} 13. c3 {[%clk 0:02:47.3]} 13... Nc6 {[%clk 0:03:06.9]} 14.
Ne3 {[%clk 0:02:47.6]} 14... b5 {[%clk 0:03:01.7]} 15. O-O {[%clk 0:02:27.3]}
15... b4 {[%clk 0:03:02]} 16. Kh1 {[%clk 0:02:07.5]} 16... bxc3 {[%clk
0:02:57.6]} 17. bxc3 {[%clk 0:02:09.4]} 17... Nxd4 {[%clk 0:02:57.3]} 18. cxd4
{[%clk 0:02:11.1]} 18... f6 {[%clk 0:02:55.9]} 19. Bd3 {[%clk 0:02:07.7]} 19...
fxe5 {[%clk 0:02:45.1]} 20. fxe5 {[%clk 0:02:08.3]} 20... Bg5 {[%clk 0:02:30.4]}
21. Rxf8+ {[%clk 0:01:59.4]} 21... Qxf8 {[%clk 0:02:32.3]} 22. Rf1 {[%clk
0:01:59.4]} 22... Qe7 {[%clk 0:02:33.4]} 23. Qe2 {[%clk 0:01:54.3]} 23... Bd7
{[%clk 0:02:22.1]} 24. Qf3 {[%clk 0:01:39.2]} 24... Rf8 {[%clk 0:01:55.8]} 25.
Qh3 {[%clk 0:01:23]} 25... Rxf1+ {[%clk 0:01:49.4]} 26. Nxf1 {[%clk 0:01:24.1]}
26... h6 {[%clk 0:01:35]} 27. Qf3 {[%clk 0:01:17.1]} 27... Be8 {[%clk
0:01:25.2]} 28. g3 {[%clk 0:01:14.9]} 28... Qb4 {[%clk 0:01:25.2]} 29. h4 {[%clk
0:01:13]} 29... Be7 {[%clk 0:01:23.8]} 30. Qg4 {[%clk 0:01:11.9]} 30... Bf7
{[%clk 0:01:21.1]} 31. Bg6 {[%clk 0:01:06.2]} 31... Bxg6 {[%clk 0:00:58.9]} 32.
Qxg6 {[%clk 0:01:06.7]} 32... Qxd4 {[%clk 0:00:56.8]} 33. Qxe6+ {[%clk
0:01:07.6]} 33... Kf8 {[%clk 0:00:58.3]} 34. Qf5+ {[%clk 0:01:02.4]} 34... Kg8
{[%clk 0:00:56.4]} 35. Qe6+ {[%clk 0:00:52.9]} 35... Kf8 {[%clk 0:00:57.6]} 36.
Qf5+ {[%clk 0:00:41.1]} 36... Ke8 {[%clk 0:00:22.4]} 37. Kg2 {[%clk 0:00:38.3]}
37... Qb2+ {[%clk 0:00:19]} 38. Kh3 {[%clk 0:00:38.9]} 38... Qe2 {[%clk
0:00:20.2]} 39. Nh2 {[%clk 0:00:36.7]} 39... d4 {[%clk 0:00:19.6]} 40. e6 {[%clk
0:00:35.3]} 40... Qc4 {[%clk 0:00:12.6]} 41. Nf3 {[%clk 0:00:33.1]} 41... Kd8
{[%clk 0:00:14]} 42. Ne5 {[%clk 0:00:33]} 42... Qc5 {[%clk 0:00:12]} 43. Qe4
{[%clk 0:00:28.4]} 43... Kc7 {[%clk 0:00:12.4]} 44. Ng6 {[%clk 0:00:23.1]} 44...
Qd6 {[%clk 0:00:09.7]} 45. Nf4 {[%clk 0:00:22.9]} 45... g5 {[%clk 0:00:09.4]}
46. hxg5 {[%clk 0:00:23.1]} 46... hxg5 {[%clk 0:00:11.3]} 47. Nd5+ {[%clk
0:00:24]} 47... Kd8 {[%clk 0:00:13]} 48. Qf5 {[%clk 0:00:10.9]} 48... d3 {[%clk
0:00:12.7]} 49. Nxe7 {[%clk 0:00:10.7]} 49... Kxe7 {[%clk 0:00:13.4]} 50. Qf7+
{[%clk 0:00:11.3]} 50... Kd8 {[%clk 0:00:15]} 51. Qf6+ {[%clk 0:00:11.7]} 51...
Qe7 {[%clk 0:00:13.9]} 52. Qd4+ {[%clk 0:00:12.1]} 52... Ke8 {[%clk 0:00:15.5]}
53. Qxd3 {[%clk 0:00:11.2]} 53... Qxe6+ {[%clk 0:00:16.9]} 54. g4 {[%clk
0:00:11.6]} 54... Qxa2 {[%clk 0:00:17.1]} 55. Qb5+ {[%clk 0:00:12.6]} 55... Kf7
{[%clk 0:00:17.6]} 56. Qxg5 {[%clk 0:00:14.2]} 56... Qb3+ {[%clk 0:00:19]} 57.
Kh4 {[%clk 0:00:15.5]} 57... Qe6 {[%clk 0:00:20.1]} 58. Qc5 {[%clk 0:00:15.1]}
58... Qh6+ {[%clk 0:00:21]} 59. Kg3 {[%clk 0:00:16.2]} 59... a6 {[%clk
0:00:21.9]} 60. Qc7+ {[%clk 0:00:16.1]} 60... Kg8 {[%clk 0:00:23.1]} 61. Qc8+
{[%clk 0:00:17.1]} 61... Kg7 {[%clk 0:00:24.4]} 62. Qd7+ {[%clk 0:00:17.9]}
62... Kg8 {[%clk 0:00:25.2]} 63. Qc8+ {[%clk 0:00:18.8]} 63... Kg7 {[%clk
0:00:26.8]} 64. Qc7+ {[%clk 0:00:19.8]} 64... Kg8 {[%clk 0:00:27.6]} 1/2-1/2

[Event "*** MasterClass Titled Tuesday Blitz"]
[Site "Chess.com"]
[Date "2017.09.05"]
[Round "1"]
[White "Adham_Fawzy"]
[Black "GM_dmitrij"]
[Result "1/2-1/2"]
[WhiteElo "2370"]
[BlackElo "2646"]
[TimeControl "180+2"]
[EndTime "13:10:12 PDT"]
[Termination "Game drawn by repetition"]

1. e4 {[%clk 0:03:01.1]} 1... e5 {[%clk 0:03:00.1]} 2. Nf3 {[%clk 0:03:01.5]}
2... Nc6 {[%clk 0:03:01.6]} 3. Bb5 {[%clk 0:03:01.4]} 3... Nge7 {[%clk
0:03:00.5]} 4. O-O {[%clk 0:03:00.6]} 4... g6 {[%clk 0:03:01.3]} 5. c3 {[%clk
0:02:59.5]} 5... a6 {[%clk 0:03:02.2]} 6. Ba4 {[%clk 0:02:59.9]} 6... Bg7 {[%clk
0:03:03.3]} 7. d4 {[%clk 0:03:00.4]} 7... exd4 {[%clk 0:03:04.7]} 8. cxd4 {[%clk
0:03:01.3]} 8... b5 {[%clk 0:03:05.9]} 9. Bc2 {[%clk 0:03:01.2]} 9... d6 {[%clk
0:03:06]} 10. Nc3 {[%clk 0:03:01.1]} 10... O-O {[%clk 0:03:06.8]} 11. h3 {[%clk
0:03:02]} 11... Na5 {[%clk 0:03:06.3]} 12. b3 {[%clk 0:02:58.5]} 12... c5 {[%clk
0:03:02.3]} 13. Bb2 {[%clk 0:02:59.5]} 13... Nac6 {[%clk 0:02:45.5]} 14. Ne2
{[%clk 0:02:44.8]} 14... Bb7 {[%clk 0:02:41.1]} 15. Ng3 {[%clk 0:02:44.6]} 15...
Rc8 {[%clk 0:02:40]} 16. Rc1 {[%clk 0:02:41.2]} 16... Re8 {[%clk 0:02:38.3]} 17.
Bb1 {[%clk 0:02:42.1]} 17... cxd4 {[%clk 0:02:11.4]} 18. Nxd4 {[%clk 0:02:42.4]}
18... Nxd4 {[%clk 0:02:11.9]} 19. Rxc8 {[%clk 0:02:43]} 19... Qxc8 {[%clk
0:02:08]} 20. Bxd4 {[%clk 0:02:43.1]} 20... Qe6 {[%clk 0:01:56.1]} 21. Bxg7
{[%clk 0:02:23.4]} 21... Kxg7 {[%clk 0:01:58]} 22. f4 {[%clk 0:02:20.8]} 22...
Qf6 {[%clk 0:01:45.7]} 23. Qd2 {[%clk 0:02:11.6]} 23... Rc8 {[%clk 0:01:34.7]}
24. Rd1 {[%clk 0:02:00.4]} 24... Qc3 {[%clk 0:01:32.4]} 25. Qxc3+ {[%clk
0:01:23.1]} 25... Rxc3 {[%clk 0:01:34.3]} 26. Ne2 {[%clk 0:01:24.5]} 26... Rc6
{[%clk 0:01:17.8]} 27. e5 {[%clk 0:01:18.2]} 27... d5 {[%clk 0:01:05.3]} 28. Kf2
{[%clk 0:01:17.2]} 28... b4 {[%clk 0:01:01.8]} 29. g4 {[%clk 0:01:16.1]} 29...
f6 {[%clk 0:01:00.2]} 30. exf6+ {[%clk 0:00:57.7]} 30... Rxf6 {[%clk 0:01:02.1]}
31. Ke3 {[%clk 0:00:50.6]} 31... Re6+ {[%clk 0:01:01.7]} 32. Kd2 {[%clk
0:00:49.6]} 32... Nc6 {[%clk 0:00:58.5]} 33. f5 {[%clk 0:00:48.1]} 33... gxf5
{[%clk 0:00:59]} 34. Nf4 {[%clk 0:00:44]} 34... Rd6 {[%clk 0:00:53.5]} 35. gxf5
{[%clk 0:00:33.9]} 35... Bc8 {[%clk 0:00:43.7]} 36. Rg1+ {[%clk 0:00:31.1]}
36... Kh6 {[%clk 0:00:41.5]} 37. h4 {[%clk 0:00:25.2]} 37... Nd4 {[%clk
0:00:38.7]} 38. Ke3 {[%clk 0:00:21.1]} 38... Nxf5+ {[%clk 0:00:39.1]} 39. Bxf5
{[%clk 0:00:21.9]} 39... Bxf5 {[%clk 0:00:41]} 40. Kd4 {[%clk 0:00:23.4]} 40...
Be4 {[%clk 0:00:37.6]} 41. Rg8 {[%clk 0:00:18.6]} 41... Rf6 {[%clk 0:00:35.8]}
42. Ne2 {[%clk 0:00:18.7]} 42... Rf2 {[%clk 0:00:35]} 43. Ke3 {[%clk 0:00:19]}
43... Rh2 {[%clk 0:00:35.4]} 44. Rg4 {[%clk 0:00:15.4]} 44... a5 {[%clk
0:00:32.7]} 45. Nf4 {[%clk 0:00:15.8]} 45... Bb1 {[%clk 0:00:29.6]} 46. Nxd5
{[%clk 0:00:16]} 46... Bxa2 {[%clk 0:00:30]} 47. Ne7 {[%clk 0:00:16.5]} 47...
Kh5 {[%clk 0:00:28.1]} 48. Rg7 {[%clk 0:00:12.3]} 48... Rxh4 {[%clk 0:00:21.2]}
49. Nf5 {[%clk 0:00:12.1]} 49... Rg4 {[%clk 0:00:19.8]} 50. Ng3+ {[%clk
0:00:11]} 50... Kh4 {[%clk 0:00:19]} 51. Nf5+ {[%clk 0:00:11]} 51... Kh3 {[%clk
0:00:20.4]} 52. Rxh7+ {[%clk 0:00:11.2]} 52... Kg2 {[%clk 0:00:22]} 53. Nh4+
{[%clk 0:00:11]} 53... Kg3 {[%clk 0:00:21.5]} 54. Nf5+ {[%clk 0:00:11.5]} 54...
Kg2 {[%clk 0:00:23.1]} 55. Nh4+ {[%clk 0:00:12.5]} 55... Kg3 {[%clk 0:00:24.7]}
56. Nf5+ {[%clk 0:00:13.4]} 56... Kg2 {[%clk 0:00:03.4]} 57. Nh4+ {[%clk
0:00:14.1]} 1/2-1/2